Workbook

Sheet 数字指示秤.
A1: Max= | B1: 20000 | C1: kg
A2: e= | B2: 5 | C2: kg | D2: Min= | E2: =20*B2 -> 100 | F2: kg
A4: 称量： 计量单位:kg | H4: E0= | I4: =O6 -> 0.5 | J4: kg | L4: 置零准确度： 计量单位:kg
A5: 载荷L | B5: 示值 I | D5: 附加载荷△L | F5: 误差 E | H5: 修正误差Ec | J5: MPE | L5: 砝码L0 | M5: 示值I0 | N5: 附加载荷△L | O5: 误差 E0 | P5: MPE
B6: ↓ | C6: ↑ | D6: ↓ | E6: ↑ | F6: ↓ | G6: ↑ | H6: ↓ | I6: ↑ | L6: =A7 -> 50 | M6: =L6 -> 50 | N6: =D7 -> 2 | O6: =M6+0.5*B2-N6-L6 -> 0.5 | P6: ±1.25
A7: =10*B2 -> 50 | B7: 50 | C7: 50 | D7: 2 | E7: 1.5 | F7: =B7+0.5*B2-D7-A7 -> 0.5 | G7: =C7+0.5*B2-E7-A7 -> 1 | H7: / | I7: =G7-I4 -> 0.5 | J7: ±1.25 | L7: 除皮准确度： 计量单位:kg
A8: =20*B2 -> 100 | B8: 100 | C8: 100 | D8: 2.5 | E8: 2 | F8: =B8+0.5*B2-D8-A8 -> 0 | G8: =C8+0.5*B2-E8-A8 -> 0.5 | H8: =F8-I4 -> -0.5 | I8: =G8-I4 -> 0 | J8: ±2.5 | L8: 砝码L0 | M8: 示值I0 | N8: 附加载荷△L | O8: 误差 E0 | P8: MPE
A9: =500*B2 -> 2500 | B9: 2500 | C9: 2500 | D9: 3 | E9: 3 | F9: =B9+0.5*B2-D9-A9 -> -0.5 | G9: =C9+0.5*B2-E9-A9 -> -0.5 | H9: =F9-I4 -> -1 | I9: =G9-I4 -> -1 | J9: ±2.5 | L9: =A18 -> 50 | M9: =L9 -> 50 | N9: =D18 -> 3 | O9: =M9+0.5*B2-D18-L9 -> -0.5 | P9: ±1.25
A10: =2000*B2 -> 10000 | B10: 10000 | C10: 10000 | D10: 4 | E10: 2.5 | F10: =B10+0.5*B2-D10-A10 -> -1.5 | G10: =C10+0.5*B2-E10-A10 -> 0 | H10: =F10-I4 -> -2 | I10: =G10-I4 -> -0.5 | J10: ±5
A11: 15000 | B11: 15000 | C11: 15000 | D11: 3 | E11: 2 | F11: =B11+0.5*B2-D11-A11 -> -0.5 | G11: =C11+0.5*B2-E11-A11 -> 0.5 | H11: =F11-I4 -> -1 | I11: =G11-I4 -> 0 | J11: ±7.5
A12: =B1 -> 20000 | B12: 20000 | C12: 20000 | D12: 2 | E12: 2 | F12: =B12+0.5*B2-D12-A12 -> 0.5 | G12: =C12+0.5*B2-E12-A12 -> 0.5 | H12: =F12-I4 -> 0 | I12: =G12-I4 -> 0 | J12: ±7.5
A13: 除皮质量： | C13: 7000 | E13: kg
A14: 除皮后的称量： 计量单位:kg | H14: E0= | I14: =O9 -> -0.5 | J14: kg
A15: 载荷L | B15: 示值 I | D15: 附加载荷△L | F15: 误差 E | H15: 修正误差Ec | J15: MPE
B17: ↓ | C17: ↑ | D17: ↓ | E17: ↑ | F17: ↓ | G17: ↑ | H17: ↓ | I17: ↑ | L17: 鉴别阈： 计量单位:kg | P17: E0= | Q17: =W19 -> 0 | R17: kg
A18: =10*B2 -> 50 | B18: 50 | C18: 50 | D18: 3 | E18: 2 | F18: =B18+0.5*B2-D18-A18 -> -0.5 | G18: =C18+0.5*B2-E18-A18 -> 0.5 | H18: / | I18: =G18-I14 -> 1 | J18: ±1.25 | L18: 载荷L | M18: 示值I | N18: 移去载荷△L | O18: 加0.1d | P18: 附加载荷1.4d | Q18: 示值I1 | R18: I1-I
A19: =20*B2 -> 100 | B19: 100 | C19: 100 | D19: 2.5 | E19: 2 | F19: =B19+0.5*B2-D19-A19 -> 0 | G19: =C19+0.5*B2-E19-A19 -> 0.5 | H19: =F19-I14 -> 0.5 | I19: =G19-I14 -> 1 | J19: ±2.5 | L19: =20*B2+B2 -> 105 | M19: =L19 -> 105 | N19: =0.1*B2 -> 0.5 | O19: =0.1*B2 -> 0.5 | P19: =1.4*B2 -> 7 | Q19: =M19+B2 -> 110 | R19: =Q19-M19 -> 5
A20: =500*B2 -> 2500 | B20: 2500 | C20: 2500 | D20: 3 | E20: 3 | F20: =B20+0.5*B2-D20-A20 -> -0.5 | G20: =C20+0.5*B2-E20-A20 -> -0.5 | H20: =F20-I14 -> 0 | I20: =G20-I14 -> 0 | J20: ±2.5 | L20: =1/2*B1+B2 -> 10005 | M20: =L20 -> 10005 | N20: =0.1*B2 -> 0.5 | O20: =0.1*B2 -> 0.5 | P20: =1.4*B2 -> 7 | Q20: =M20+B2 -> 10010 | R20: =Q20-M20 -> 5
A21: =2000*B2 -> 10000 | B21: 10000 | C21: 10000 | D21: 2 | E21: 2.5 | F21: =B21+0.5*B2-D21-A21 -> 0.5 | G21: =C21+0.5*B2-E21-A21 -> 0 | H21: =F21-I14 -> 1 | I21: =G21-I14 -> 0.5 | J21: ±5 | L21: =B1+B2 -> 20005 | M21: =L21 -> 20005 | N21: =0.1*B2 -> 0.5 | O21: =0.1*B2 -> 0.5 | P21: =1.4*B2 -> 7 | Q21: =M21+B2 -> 20010 | R21: 5
A22: 15000 | B22: 15000 | C22: 15000 | D22: 3 | E22: 2.5 | F22: =B22+0.5*B2-D22-A22 -> -0.5 | G22: =C22+0.5*B2-E22-A22 -> 0 | H22: =F22-I14 -> 0 | I22: =G22-I14 -> 0.5 | J22: ±7.5
A23: =B1 -> 20000 | B23: 20000 | C23: 20000 | D23: 2 | E23: 3 | F23: =B23+0.5*B2-D23-A23 -> 0.5 | G23: =C23+0.5*B2-E23-A23 -> -0.5 | H23: =F23-I15 -> 0.5 | I23: =G23-I15 -> -0.5 | J23: ±7.5
A27: 重复性： 计量单位:kg
A28: 次数 | B28: 载荷L | C28: 示值I | D28: 附加载荷△L | E28: 误差E | F28: 重复性ER | G28: ∣MPE∣
A29: 1 | B29: =1/2*B1 -> 10000 | C29: =B29 -> 10000 | D29: 2.5 | E29: =C29+0.5*B2-D29-B29 -> 0 | G29: 5
A30: 2 | B30: =1/2*B1 -> 10000 | C30: =B30 -> 10000 | D30: 3 | E30: =C30+0.5*B2-D30-B30 -> -0.5
A31: 3 | B31: =1/2*B1 -> 10000 | C31: 10000 | D31: 4 | E31: =C31+0.5*B2-D31-B31 -> -1.5
A33: 偏载： 计量单位:kg | E33: E0= | F33: =0.5*B2-D35 -> 0.5 | G33: kg
A34: 位置 | B34: 载荷L | C34: 示值I | D34: 附加载荷△L | E34: 误差 E | F34: 修正误差Ec | G34: MPE
B35: =10*B2 -> 50 | C35: =B35 -> 50 | D35: 2 | E35: =C35+0.5*B2-D35-B35 -> 0.5 | F35: / | G35: ±1.25 | I35: 偏载载荷取决于秤最大称量和支撑点个数
A36: 1 | B36: 7000 | C36: 7000 | D36: 3 | E36: =C36+0.5*B2-D36-B36 -> -0.5 | F36: =E36-F33 -> -1 | G36: ±5
A37: 2 | B37: 7000 | C37: 7000 | D37: 2 | E37: =C37+0.5*B2-D37-B37 -> 0.5 | F37: =E37-F33 -> 0
A38: 3 | B38: 7000 | C38: 7000 | D38: 3.5 | E38: =C38+0.5*B2-D38-B38 -> -1 | F38: =E38-F33 -> -1.5
A39: 4 | B39: 7000 | C39: 7000 | D39: 2 | E39: =C39+0.5*B2-D39-B39 -> 0.5 | F39: =E39-F33 -> 0
